bitfinex/quotes_SOLUSD_20250520
["timestamp","ask_amount","ask_price","bid_price","bid_amount"]
[1747705078905,28.78845333,169.97,169.95,43.64]
[1747705079102,28.78845333,169.98,169.95,43.64]
[1747705079272,1.0,170.0,169.95,79.15]
[1747705079480,1.0,170.0,169.98,26.0]
[1747705079696,1.0,170.0,169.99,35.51]
[1747705080608,1.0,170.0,169.99,61.51]
[1747705081993,1.0,170.0,169.99,61.79432314]
[1747705082703,1.0,170.0,169.99,61.51]
[1747705083624,1.0,170.0,169.99,79.52432314]
[1747705084087,1.0,170.0,169.99,61.79432314]
[1747705084415,1.0,170.0,169.99,26.0]
[1747705084591,29.78845333,170.0,169.97,53.15]
[1747705084792,1.0,170.0,169.99,61.51]
[1747705085309,1.0,170.0,169.99,61.79432314]
[1747705085524,1.0,170.0,169.99,61.51]
[1747705086897,1.0,170.0,169.99,35.51]
[1747705087294,29.78845333,170.0,169.97,53.15]
[1747705087723,1.0,170.0,169.97,53.15]
[1747705087891,1.0,170.0,169.99,35.51]
[1747705088418,1.0,170.0,169.99,61.51]
[1747705088946,1.0,170.0,169.97,53.15]
[1747705089119,6.88235294,170.0,169.99,26.0]
[1747705089296,1.0,170.0,169.97,53.15]
[1747705089497,29.78845333,170.0,169.97,53.15]
[1747705089727,28.78845333,169.99,169.97,17.64]
[1747705090023,28.78845333,169.98,169.95,21.32]
[1747705090192,28.78845333,169.96,169.95,21.32]
[1747705091506,34.67219067,169.96,169.95,21.32]
[1747705092498,34.67219067,169.96,169.91,17.64]
[1747705092821,5.88373734,169.96,169.91,17.64]
[1747705093010,28.78845333,169.95,169.9,255.65]
[1747705093202,28.78845333,169.91,169.9,17.64]
[1747705093518,5.88581518,169.9,169.89,21.32]
[1747705093729,34.67426851,169.9,169.88,17.64]
[1747705093897,28.78845333,169.89,169.88,17.64]
[1747705094297,35.10865333,169.89,169.84,38.96]
[1747705094510,28.78845333,169.86,169.84,38.96]
[1747705094712,28.78845333,169.85,169.8,8.14798513]
[1747705095004,18.64964886,169.87,169.81,17.64]
[1747705095311,28.78845333,169.85,169.81,17.64]
[1747705095522,28.78845333,169.84,169.81,17.64]
[1747705095703,5.88824118,169.83,169.81,17.64]
[1747705095909,34.67669451,169.83,169.81,17.64]
[1747705096520,5.88824118,169.83,169.81,17.64]
[1747705096723,5.88685465,169.87,169.81,53.15]
[1747705097195,28.78845333,169.86,169.81,53.15]
[1747705097401,5.88685465,169.87,169.81,17.64]
[1747705097601,28.78845333,169.86,169.81,17.64]
[1747705097821,34.67600116,169.85,169.81,17.64]
[1747705098425,28.78845333,169.84,169.81,17.64]
[1747705098820,28.78845333,169.83,169.79,64.96]
[1747705099005,28.78845333,169.82,169.79,38.96]
[1747705099900,34.67599816,169.86,169.79,38.96]
[1747705100718,35.10865333,169.89,169.82,26.0]
[1747705100924,28.78845333,169.87,169.82,26.0]
[1747705101104,34.67501206,169.88,169.82,26.0]
[1747705101741,34.67565455,169.86,169.82,26.0]
[1747705102230,28.78845333,169.85,169.8,26.0]
[1747705102531,28.78845333,169.84,169.8,26.0]
[1747705102725,28.78845333,169.83,169.8,26.0]
[1747705102927,28.78845333,169.81,169.74,21.34]
[1747705103109,28.78845333,169.79,169.76,26.0]
[1747705103305,28.78845333,169.78,169.75,17.64]
[1747705103629,28.78845333,169.81,169.75,17.64]
[1747705103830,28.78845333,169.85,169.78,26.0]
[1747705104019,28.78845333,169.85,169.79,26.0]
[1747705104516,34.67565455,169.86,169.79,26.0]
[1747705105029,28.78845333,169.83,169.79,26.0]
[1747705105230,28.78845333,169.8,169.79,26.0]
[1747705106109,34.67771969,169.81,169.79,26.0]
[1747705106309,28.78845333,169.84,169.79,26.0]
[1747705106715,28.78845333,169.83,169.79,26.0]
[1747705107927,34.67674124,169.83,169.79,26.0]
[1747705108120,34.67671549,169.83,169.79,26.0]
[1747705108325,28.78845333,169.84,169.8,26.0]
[1747705108636,28.78845333,169.86,169.8,26.0]
[1747705108810,28.78845333,169.86,169.79,26.0]
[1747705109011,28.78845333,169.85,169.79,61.31]
[1747705109416,7.47979439,169.87,169.79,61.31]
[1747705109732,36.26824772,169.87,169.8,20.98]
[1747705110036,28.78845333,169.86,169.82,26.0]
[1747705110230,28.78845333,169.84,169.81,17.66]
[1747705111340,28.78845333,169.86,169.81,17.66]
[1747705111513,7.47979439,169.87,169.81,17.66]
[1747705111714,28.78845333,169.86,169.81,17.66]
[1747705111920,28.78845333,169.85,169.81,17.66]
[1747705112641,28.78845333,169.86,169.81,17.66]
[1747705112940,28.78845333,169.86,169.81,43.66]
[1747705113614,12.20663029,169.89,169.84,26.0]
[1747705114121,5.88643029,169.89,169.84,26.0]
[1747705114520,34.67430738,169.9,169.84,26.0]
[1747705115119,28.78845333,169.87,169.86,26.0]
[1747705115641,28.78845333,169.87,169.83,17.66]
[1747705115821,28.78845333,169.86,169.83,43.66]
[1747705116021,34.67587723,169.86,169.83,43.66]
[1747705116223,28.78845333,169.85,169.83,17.66]
[1747705116433,28.78845333,169.84,169.83,17.66]
[1747705116617,5.88581518,169.9,169.83,17.66]
[1747705116823,28.78845333,169.86,169.84,26.0]
[1747705117024,28.78845333,169.85,169.84,26.0]
[1747705117426,28.78845333,169.85,169.83,17.66]
[1747705117948,28.78845333,169.86,169.83,17.66]
[1747705118138,34.67600116,169.85,169.83,17.66]
[1747705118650,28.78845333,169.84,169.83,17.66]
[1747705119146,28.78845333,169.84,169.8,20.98]
[1747705119347,28.78845333,169.82,169.8,20.98]
[1747705119648,28.78845333,169.82,169.8,46.98]
[1747705120135,20.60641742,169.85,169.8,46.98]
[1747705120136,34.67738802,169.81,169.8,20.98]
[1747705120340,34.67738802,169.81,169.75,17.66]
[1747705120534,28.78845333,169.79,169.76,26.0]
[1747705121451,28.78845333,169.79,169.75,17.66]
[1747705121621,28.78845333,169.79,169.74,56.29]
[1747705121622,28.78845333,169.78,169.74,20.98]
[1747705121827,28.78845333,169.76,169.74,20.98]
[1747705122032,28.78845333,169.75,169.69,20.98]
[1747705122330,28.78845333,169.8,169.71,17.66]
[1747705122530,5.88893469,169.81,169.75,35.31]
[1747705122744,5.88893469,169.81,169.78,26.0]
[1747705122938,5.88893469,169.81,169.78,43.66]
[1747705123354,34.67710368,169.82,169.78,43.66]
[1747705123555,5.88865035,169.82,169.78,43.66]
[1747705123853,19.5179601,169.81,169.78,43.66]
[1747705124353,25.40708496,169.81,169.78,43.66]
[1747705124647,5.88912486,169.81,169.78,43.66]
[1747705124853,25.40660652,169.82,169.78,43.66]
[1747705125032,6.6351,169.83,169.78,43.66]
[1747705125350,5.88798943,169.84,169.78,43.66]
[1747705125567,25.40594953,169.84,169.78,43.66]
[1747705126138,19.5179601,169.83,169.78,43.66]
[1747705126336,25.40654801,169.82,169.78,43.66]
[1747705126535,19.5179601,169.81,169.78,43.66]
[1747705126936,25.40654801,169.82,169.78,43.66]
[1747705127247,19.5179601,169.84,169.78,43.66]
[1747705127433,5.88819387,169.84,169.78,43.66]
[1747705127835,19.5179601,169.83,169.78,43.66]
[1747705128145,25.40615397,169.84,169.78,43.66]
[1747705128552,5.88754783,169.85,169.78,43.66]
[1747705128756,19.5179601,169.84,169.78,43.66]
[1747705129462,19.5179601,169.82,169.78,43.66]
[1747705129645,19.5179601,169.8,169.76,17.66]
[1747705129959,19.5179601,169.8,169.76,43.66]
[1747705131047,5.88962836,169.79,169.75,38.64]
[1747705131250,5.88962836,169.79,169.76,26.0]
[1747705131468,5.88922576,169.81,169.76,26.0]
[1747705131641,25.40718586,169.81,169.76,26.0]
[1747705132255,5.88922576,169.81,169.76,26.0]
[1747705132454,5.88922576,169.81,169.76,61.31]
[1747705133554,25.40659734,169.82,169.76,61.31]
[1747705135762,5.88863724,169.82,169.76,61.31]
[1747705136347,5.88824118,169.83,169.76,61.31]
[1747705136552,5.88824118,169.83,169.77,38.57395341]
[1747705137655,25.40620128,169.83,169.77,38.57395341]
[1747705137951,19.5179601,169.82,169.77,38.57395341]
[1747705138462,19.5179601,169.82,169.77,35.31]
[1747705138661,5.88893469,169.81,169.77,35.31]
[1747705138881,25.40663109,169.82,169.77,35.31]
[1747705139049,5.88867099,169.82,169.77,35.31]
[1747705139449,5.88867099,169.82,169.78,3.27236839]
[1747705140645,25.40663109,169.82,169.79,3.27236839]
[1747705140870,19.5179601,169.8,169.79,3.27236839]
[1747705141263,19.5179601,169.81,169.79,3.27236839]
[1747705141663,25.40663109,169.82,169.79,3.27236839]
[1747705141865,5.88754783,169.85,169.8,43.66]
[1747705142070,25.40550793,169.85,169.8,43.66]
[1747705142564,5.88754783,169.85,169.8,43.66]
[1747705143584,5.88727766,169.86,169.83,26.0]
[1747705143959,5.88693992,169.87,169.84,26.0]
[1747705144491,5.88634447,169.89,169.84,61.31]
[1747705145368,12.17584465,169.91,169.84,61.31]
[1747705145554,21.0669601,169.94,169.84,61.31]
[1747705146388,5.88477608,169.93,169.84,61.31]
[1747705146556,5.88477608,169.93,169.89,26.0]
[1747705146878,5.88442979,169.94,169.9,17.66]
[1747705147963,5.88408355,169.95,169.9,17.66]
[1747705149178,5.88373734,169.96,169.9,17.66]
[1747705150068,25.40169744,169.96,169.9,17.66]
[1747705150263,25.40169744,169.96,169.89,26.0]
[1747705150264,19.5179601,169.93,169.89,26.0]
[1747705150468,19.5179601,169.93,169.89,43.66]
[1747705150671,19.5179601,169.94,169.89,43.66]
[1747705150878,5.88373734,169.96,169.89,78.97]
[1747705151361,25.40169744,169.96,169.89,78.97]
[1747705151972,5.88373734,169.96,169.89,78.97]
[1747705152172,5.88269898,169.99,169.89,78.97]
[1747705152365,5.88269898,169.99,169.9,0.28432314]
[1747705152987,5.88269898,169.99,169.95,26.0]
[1747705153181,5.88269898,169.99,169.95,43.64]
[1747705157568,6.88241562,170.0,169.95,78.95]
[1747705157771,1.0,170.0,169.95,78.95]
[1747705158382,1.0,170.0,169.96,0.28432314]
[1747705159267,1.0,170.0,169.95,78.95]
[1747705159268,20.5179601,170.0,169.95,78.95]
[1747705159472,19.5179601,169.99,169.95,78.95]
[1747705159697,19.5179601,169.98,169.95,78.95]
[1747705160201,6.88239527,170.0,169.95,43.64]
[1747705160382,5.88339118,169.97,169.95,43.64]
[1747705160581,1.0,170.0,169.95,78.95]
[1747705161271,1.0,170.0,169.96,0.28432314]
[1747705161794,1.0,170.0,169.97,35.31]
[1747705161973,1.0,170.0,169.99,26.0]
[1747705167480,1.0,170.0,169.99,61.31]
[1747705172182,1.0,170.0,169.99,99.49]
[1747705172183,20.5179601,170.0,169.99,99.49]
[1747705172395,26.40031304,170.0,169.99,38.18]
[1747705172876,1.0,170.0,169.99,38.18]
[1747705173193,26.40031304,170.0,169.99,38.18]
[1747705174300,6.88235294,170.0,169.99,38.18]
[1747705174492,26.40031304,170.0,169.99,38.18]
[1747705174899,45.91827314,170.0,169.97,26.0]
[1747705175112,6.88235294,170.0,169.96,55.85]
[1747705175276,1.0,170.0,169.97,52.95]
[1747705175588,1.0,170.0,169.99,61.31]
[1747705175783,20.5179601,170.0,169.99,26.0]
[1747705175985,26.40031304,170.0,169.99,26.0]
[1747705176190,45.91827314,170.0,169.97,17.64]
[1747705176382,19.5179601,169.98,169.97,17.64]
[1747705177183,6.88235294,170.0,169.97,17.64]
[1747705177394,1.0,170.0,169.97,52.95]
[1747705177598,1.0,170.0,169.99,26.0]
[1747705177880,1.0,170.0,169.99,61.31]
[1747705183510,1.0,170.0,169.99,35.31]
[1747705183713,45.91827314,170.0,169.98,17.64]
[1747705183891,19.5179601,169.99,169.98,17.64]
[1747705184097,27.4887601,169.99,169.96,20.54]
[1747705184293,19.5179601,169.97,169.96,20.54]
[1747705185396,25.40135128,169.97,169.96,20.54]
[1747705185923,5.88339118,169.97,169.96,20.54]
[1747705186220,19.5179601,169.97,169.96,20.54]
[1747705186424,1.0,170.0,169.96,20.54]
[1747705186425,19.5179601,169.98,169.96,20.54]
[1747705186619,6.88264589,170.0,169.96,20.54]
[1747705186833,19.5179601,169.98,169.96,20.54]
[1747705187010,19.5179601,169.99,169.96,20.54]
[1747705187528,19.5179601,169.99,169.97,35.31]
[1747705187731,25.40099177,169.99,169.98,17.64]
[1747705189316,5.88303167,169.99,169.98,17.64]
[1747705189621,25.40099177,169.99,169.98,17.64]
[1747705190419,5.88303167,169.99,169.98,17.64]
[1747705190618,25.40099177,169.99,169.98,17.64]
[1747705193210,5.88303167,169.99,169.98,17.64]
[1747705193410,25.40099177,169.99,169.98,17.64]
[1747705193622,25.40099177,169.99,169.96,20.54]
[1747705193829,18.06033976,169.99,169.96,38.18]
[1747705194125,12.17730809,169.97,169.96,38.18]
[1747705194927,12.17730809,169.97,169.93,17.64]
[1747705195095,12.17730809,169.98,169.94,26.0]
[1747705195307,5.88303167,169.99,169.94,61.31]
[1747705195607,18.06033976,169.99,169.94,61.31]
[1747705196204,5.88303167,169.99,169.94,61.31]
[1747705196839,12.17730809,169.98,169.95,3.25559193]
[1747705197428,5.88339118,169.97,169.95,3.25559193]
[1747705198610,12.17730809,169.99,169.94,81.65]
[1747705198611,5.88304506,169.98,169.94,81.65]
[1747705199023,18.06035315,169.98,169.94,81.65]
[1747705199229,12.17730809,169.97,169.94,46.34]
[1747705200151,5.88373734,169.96,169.94,46.34]
[1747705200305,18.06104543,169.96,169.94,37.98]
[1747705200507,12.17730809,169.95,169.94,37.98]
[1747705200706,18.06104543,169.96,169.94,37.98]
[1747705200928,5.88373734,169.96,169.94,37.98]
[1747705201707,13.17730809,170.0,169.94,73.29]
[1747705201914,1.0,170.0,169.94,73.29]
[1747705202220,1.0,170.0,169.94,154.19]
[1747705202533,1.0,170.0,169.94,73.29]
[1747705203105,6.88248521,170.0,169.96,35.31]
[1747705204029,1.0,170.0,169.96,35.31]
[1747705204337,6.88236702,170.0,169.96,35.31]
[1747705204931,1.0,170.0,169.96,35.31]
[1747705205122,1.0,170.0,169.98,35.31]
[1747705206217,1.0,170.0,169.95,0.28432314]
[1747705206218,1.0,170.0,169.99,38.56373494]
[1747705210136,1.0,170.0,169.99,58.90373494]
[1747705212938,6.61,170.11,170.06,26.0]
[1747705213108,5.87889588,170.1,170.07,17.64]
[1747705213311,21.9088507,170.09,170.07,17.64]
[1747705213545,27.78774658,170.1,170.07,17.64]
[1747705213743,5.87889588,170.1,170.07,17.64]
[1747705214742,27.78774658,170.1,170.07,17.64]
[1747705215049,21.9088507,170.09,170.07,17.64]
[1747705215251,21.9088507,170.08,170.0,26.0]
[1747705215531,21.9088507,170.05,170.01,37.98]
[1747705215722,21.9088507,170.04,170.03,26.0]
[1747705215929,21.9088507,170.06,170.03,26.0]
[1747705216241,21.9088507,170.08,170.03,26.0]
[1747705216413,21.9088507,170.07,170.03,26.0]
[1747705216613,21.9088507,170.06,170.03,26.0]
[1747705217134,21.9088507,170.05,170.03,26.0]
[1747705217310,5.88096918,170.04,170.03,26.0]
[1747705218215,21.9088507,170.06,170.03,26.0]
[1747705218416,21.9088507,170.07,170.03,26.0]
[1747705219319,27.78909914,170.07,170.03,26.0]
[1747705219921,21.9088507,170.05,170.03,26.0]
[1747705220121,21.9088507,170.06,170.03,26.0]
[1747705221148,5.88024844,170.07,170.03,26.0]
[1747705221643,5.88024844,170.07,170.05,26.0]
[1747705222149,20.57613167,170.1,170.05,26.0]
[1747705222325,5.87889476,170.1,170.06,35.31]
[1747705222527,27.78774546,170.1,170.07,37.98]
[1747705222728,5.87889476,170.1,170.07,73.29]
[1747705224147,5.87820362,170.12,170.07,73.29]
[1747705224326,20.56826344,170.17,170.1,61.31]
[1747705224530,21.9088507,170.15,170.1,61.31]
[1747705225026,20.56826344,170.17,170.1,61.31]
[1747705225543,42.47711414,170.17,170.1,61.31]
[1747705225747,34.23615199,170.17,170.1,61.31]
[1747705226241,13.66788855,170.19,170.1,61.31]
[1747705226633,20.56041825,170.23,170.1,61.31]
[1747705226833,13.66788855,170.19,170.1,61.31]
[1747705228146,13.66788855,170.17,170.1,61.31]
[1747705228350,5.87682181,170.16,170.1,61.31]
[1747705228550,13.66788855,170.23,170.15,61.31]
[1747705228749,13.66788855,170.23,170.11,8.70881334]
[1747705228750,13.66788855,170.22,170.19,26.0]
[1747705229065,34.22709907,170.24,170.2,26.0]
[1747705229933,20.55921052,170.24,170.18,26.0]
[1747705230147,20.55438101,170.28,170.2,26.0]
[1747705230352,13.66788855,170.24,170.2,26.0]
[1747705230543,13.66788855,170.22,170.18,26.0]
[1747705230741,13.66788855,170.23,170.18,26.0]
[1747705230942,13.66788855,170.24,170.18,26.0]
[1747705231255,20.55438101,170.28,170.2,26.0]
[1747705231433,34.22226956,170.28,170.2,26.0]
[1747705231632,13.66788855,170.24,170.2,26.0]
[1747705231826,20.55438101,170.28,170.2,26.0]
[1747705232042,5.87406015,170.24,170.2,26.0]
[1747705233433,5.87406015,170.24,170.21,35.31]
[1747705233647,5.87406015,170.24,170.22,37.76]
[1747705233949,5.87302519,170.27,170.23,61.31]
[1747705234154,5.87233542,170.29,170.23,61.31]
[1747705234359,29.9465884,170.34,170.24,0.28432314]
[1747705234944,16.27869985,170.34,170.24,0.28432314]
[1747705235158,5.87095637,170.33,170.24,0.28432314]
[1747705235759,21.82664986,170.31,170.25,35.31]
[1747705235961,21.82664986,170.3,170.28,26.0]
[1747705236173,5.87233542,170.29,170.26,26.0]
[1747705236459,5.87233542,170.29,170.26,63.76]
[1747705238040,5.8719906,170.3,170.26,63.76]
[1747705238249,20.55196711,170.3,170.26,63.76]
[1747705238960,21.82664986,170.28,170.26,37.76]
[1747705239145,21.82664986,170.27,170.2,35.31]
[1747705239352,21.82664986,170.23,170.21,73.05]
[1747705239552,21.82664986,170.23,170.22,37.74]
[1747705240155,27.70105507,170.23,170.22,37.74]
[1747705240665,5.87440521,170.23,170.22,37.74]
[1747705240869,27.70105507,170.23,170.22,20.12]
[1747705241164,27.70105507,170.23,170.22,37.74]
[1747705241354,5.87440521,170.23,170.22,37.74]
[1747705241549,5.87412768,170.24,170.22,37.74]
[1747705241967,27.70077754,170.24,170.22,37.74]
[1747705242142,21.82664986,170.23,170.22,37.74]
[1747705242348,14.68354923,170.26,170.22,37.74]
[1747705242557,21.82664986,170.23,170.22,37.74]
[1747705243367,21.82664986,170.24,170.22,37.74]
[1747705243665,21.82664986,170.23,170.22,37.74]
[1747705244268,21.82664986,170.27,170.22,73.05]
[1747705244475,27.69933015,170.28,170.22,73.05]
[1747705245468,5.87233542,170.29,170.22,99.05]
[1747705245684,21.82664986,170.28,170.22,99.05]
[1747705245877,21.82664986,170.27,170.22,99.05]
[1747705246050,5.87233542,170.29,170.22,99.05]
[1747705246366,5.87130108,170.32,170.26,35.31]
[1747705246583,27.69795094,170.32,170.26,35.31]
[1747705247078,5.87130108,170.32,170.26,35.31]
[1747705247247,27.69795094,170.32,170.3,35.31]
[1747705247566,5.87130108,170.32,170.31,52.93]
[1747705248156,27.69795094,170.32,170.31,17.62]
[1747705248576,5.87130108,170.32,170.31,17.62]
[1747705248768,27.69795094,170.32,170.31,17.62]
[1747705250174,14.67517352,170.36,170.31,52.93]
[1747705250356,5.87026709,170.35,170.31,52.93]
[1747705250558,21.82664986,170.33,170.31,52.93]
[1747705251683,27.69780496,170.33,170.31,52.93]
[1747705252279,21.82664986,170.32,170.31,17.62]
[1747705252451,21.82664986,170.32,170.25,35.31]
[1747705252649,21.82664986,170.28,170.26,73.03]
[1747705252855,21.82664986,170.27,170.24,219.74]
[1747705253078,21.82664986,170.27,170.26,26.0]
[1747705253254,21.82664986,170.27,170.25,37.72]
[1747705253454,21.82664986,170.26,170.25,37.72]
[1747705253674,5.87337013,170.26,170.25,37.72]
[1747705253862,27.70001999,170.26,170.25,37.72]
[1747705255589,5.87302519,170.27,170.25,37.72]
[1747705255761,21.82664986,170.26,170.25,37.72]
[1747705257291,5.87302519,170.27,170.25,73.03]
[1747705257588,21.82664986,170.29,170.26,61.31]
[1747705257788,21.82664986,170.27,170.26,26.0]
[1747705257986,21.82664986,170.27,170.26,17.6]
[1747705259475,20.55438101,170.28,170.26,17.6]
[1747705259678,27.69967505,170.27,170.26,17.6]
[1747705259896,5.87302519,170.27,170.26,17.6]
[1747705260270,27.69967505,170.27,170.26,17.6]
[1747705260466,42.38223803,170.27,170.21,35.31]
[1747705260798,21.82664986,170.22,170.14,1.5319]
[1747705260975,21.82664986,170.15,170.14,20.14]
[1747705261891,27.70381706,170.15,170.14,46.14]
[1747705262058,27.70381706,170.15,170.14,20.14]
[1747705262259,27.70381706,170.15,170.14,46.14]
[1747705262665,5.87613115,170.18,170.17,26.0]
[1747705262864,21.82664986,170.21,170.17,26.0]
[1747705263086,21.82664986,170.2,170.18,17.6]
[1747705263283,21.82664986,170.19,170.18,17.6]
[1747705263668,5.87578588,170.19,170.18,17.6]
[1747705263868,27.70243574,170.19,170.18,17.6]
[1747705264087,27.70243574,170.19,170.18,43.6]
[1747705264279,5.87578588,170.19,170.18,43.6]
[1747705264586,27.70243574,170.19,170.18,43.6]
[1747705265200,27.70243574,170.19,170.18,17.6]
[1747705265409,82.86819917,170.19,170.14,37.76]
[1747705265575,21.82664986,170.15,170.14,17.62]
[1747705265773,5.87751263,170.14,170.09,20.14]
[1747705265973,21.82664986,170.1,170.09,20.14]
[1747705266609,20.57129422,170.14,170.09,20.14]
[1747705266610,18.64964886,170.13,170.09,20.14]
[1747705266788,21.82664986,170.12,170.1,26.0]
[1747705267181,21.82664986,170.12,170.09,20.14]
[1747705268209,27.7051015,170.12,170.09,46.14]
[1747705268382,21.82664986,170.1,170.09,46.14]
[1747705268581,21.82664986,170.1,170.09,63.76]
[1747705270508,21.82664986,170.12,170.09,63.76]
[1747705270899,5.87784116,170.14,170.12,26.0]
[1747705271112,21.82664986,170.13,170.12,26.0]
[1747705271279,21.82664986,170.13,170.09,37.76]
[1747705271604,5.87784116,170.14,170.09,63.76]
[1747705271809,21.82664986,170.11,170.09,63.76]
[1747705272503,21.82664986,170.1,170.09,63.76]
[1747705272810,21.82664986,170.1,170.09,17.62]
[1747705273727,27.70491984,170.12,170.09,17.62]
[1747705274092,21.82664986,170.1,170.09,17.62]
[1747705274493,5.8792404,170.09,170.07,26.0]
[1747705274695,27.70589026,170.09,170.08,17.62]
[1747705274909,5.8792404,170.09,170.08,17.62]
[1747705275111,27.70589026,170.09,170.08,17.62]
[1747705275627,21.82664986,170.09,170.08,17.62]
[1747705276529,27.70589026,170.09,170.08,17.62]
[1747705276699,18.64964886,170.06,170.0,37.78]
[1747705276899,21.82664986,170.01,170.0,37.78]
[1747705277093,21.82664986,170.01,170.0,20.16]
[1747705277295,21.82664986,170.01,169.96,17.62]
[1747705277496,21.82664986,170.01,169.95,20.16]
[1747705277497,21.82664986,169.97,169.95,20.16]
[1747705277698,21.82664986,169.96,169.95,20.16]
[1747705278902,21.82664986,169.96,169.9,20.16]
[1747705278903,40.47629872,169.96,169.9,20.16]
[1747705279122,21.82664986,169.91,169.85,37.75368338]
[1747705279318,21.82664986,169.88,169.85,17.59368338]
[1747705279833,5.88650812,169.88,169.83,17.62]
[1747705280033,21.82664986,169.84,169.83,17.62]
[1747705280329,21.82664986,169.84,169.8,227.96982716]
[1747705280330,21.82664986,169.84,169.8,8.04982716]
[1747705280497,6.5399,169.87,169.8,8.04982716]
[1747705280498,21.82664986,169.81,169.8,8.04982716]
[1747705281003,40.47629872,169.81,169.8,8.04982716]
[1747705281236,40.47629872,169.81,169.74,8.79684169]
[1747705281237,18.64964886,169.8,169.74,8.79684169]
[1747705281442,21.82664986,169.75,169.74,8.79684169]
[1747705281731,46.36731492,169.75,169.74,8.79684169]
[1747705281896,68.19396478,169.75,169.72,17.59368338]
[1747705282095,21.82664986,169.73,169.72,17.59368338]
[1747705282905,40.47629872,169.73,169.72,17.59368338]
[1747705285003,24.54170636,169.72,169.7,35.18736676]
[1747705285203,40.47629872,169.71,169.7,35.18736676]
[1747705285709,47.53819234,169.71,169.7,35.18736676]
[1747705286230,47.53819234,169.71,169.62,20.18]
[1747705286231,5.89275191,169.7,169.62,20.18]
[1747705286433,28.88854348,169.63,169.57,17.64]
[1747705286633,18.64964886,169.67,169.57,17.64]
[1747705286634,28.88854348,169.61,169.57,17.64]
[1747705286811,28.88854348,169.63,169.57,17.64]
[1747705287125,18.64964886,169.69,169.57,17.64]
[1747705287301,28.88854348,169.64,169.57,17.64]
[1747705287501,28.88854348,169.64,169.6,26.0]
[1747705287716,28.88854348,169.63,169.6,26.0]
[1747705287923,28.88854348,169.61,169.6,26.0]
[1747705288124,5.89372816,169.68,169.6,26.0]
[1747705288330,28.88854348,169.65,169.6,26.0]
[1747705289445,18.64964886,169.72,169.6,26.0]
[1747705289656,18.64964886,169.72,169.64,26.0]
[1747705289946,28.88854348,169.65,169.64,26.0]
[1747705290846,28.88854348,169.65,169.61,20.22]
[1747705291137,28.88854348,169.62,169.61,46.22]
[1747705291915,28.88854348,169.68,169.61,20.22]
[1747705292222,28.88854348,169.66,169.61,20.22]
[1747705293134,18.64964886,169.72,169.61,20.22]
[1747705293341,1.5069,169.75,169.64,26.0]
[1747705293527,28.88854348,169.7,169.65,17.66]
[1747705293838,28.88854348,169.66,169.65,17.66]
[1747705294526,18.64964886,169.72,169.65,17.66]
[1747705294854,14.72840815,169.74,169.65,17.66]
[1747705294855,28.88854348,169.69,169.65,17.66]
[1747705295224,5.89171036,169.73,169.65,17.66]
[1747705295436,28.88854348,169.71,169.65,17.66]
[1747705295747,28.88854348,169.7,169.65,17.66]
[1747705296424,28.88854348,169.69,169.65,17.66]
[1747705296623,28.88854348,169.7,169.65,17.66]
[1747705297329,28.88854348,169.7,169.66,35.31]
[1747705297520,28.88854348,169.69,169.66,35.31]
[1747705297716,5.89171036,169.73,169.66,35.31]
[1747705298149,28.88854348,169.71,169.67,55.53]
[1747705298441,7.39825601,169.75,169.67,55.53]